[Event "Titled Tuesday Blitz March 28 Early 2023"]
[White "Shukhman, Anna"]
[Black "Kriti Mayur Patel"]
[WhiteFideId "54180058"]
[BlackFideId "35061780"]
[WhiteElo "2125"]
[BlackElo "1306"]
[Result "1-0"]
[Round "07"]
[TimeControl "180+2"]
[Date "2023.03.28"]
[WhiteClock "0:00:41"]
[BlackClock "0:00:18"]

1. e4 {[%clk 0:03:00]}  e5 {[%clk 0:02:59]} 2. Nf3 {[%clk 0:03:00]}  Nc6 {[%clk 0:02:59]} 3. Bc4 {[%clk 0:02:57]}  Nf6 {[%clk 0:02:58]} 4. d3 {[%clk 0:02:55]}  Bc5 {[%clk 0:02:58]} 5. O-O {[%clk 0:02:55]}  d6 {[%clk 0:02:55]} 6. a4 {[%clk 0:02:55]}  Ne7 {[%clk 0:02:43]} 7. c3 {[%clk 0:02:53]}  a5 {[%clk 0:02:32]} 8. h3 {[%clk 0:02:43]}  Ng6 {[%clk 0:02:28]} 9. Re1 {[%clk 0:02:39]}  O-O {[%clk 0:02:25]} 10. Nbd2 {[%clk 0:02:32]}  Nh5 {[%clk 0:01:57]} 11. Nf1 {[%clk 0:02:30]}  Nhf4 {[%clk 0:01:55]} 12. d4 {[%clk 0:02:28]}  Bb6 {[%clk 0:01:51]} 13. dxe5 {[%clk 0:02:26]}  dxe5 {[%clk 0:01:51]} 14. Qxd8 {[%clk 0:02:21]}  Rxd8 {[%clk 0:01:52]} 15. Be3 {[%clk 0:02:21]}  Be6 {[%clk 0:01:50]} 16. Bxe6 {[%clk 0:02:18]}  fxe6 {[%clk 0:01:49]} 17. Bxb6 {[%clk 0:02:17]}  cxb6 {[%clk 0:01:47]} 18. Ne3 {[%clk 0:02:13]}  Nd3 {[%clk 0:01:46]} 19. Re2 {[%clk 0:02:08]}  Ngf4 {[%clk 0:01:43]} 20. Rd2 {[%clk 0:02:07]}  Nc5 {[%clk 0:01:36]} 21. Rxd8+ {[%clk 0:02:05]}  Rxd8 {[%clk 0:01:37]} 22. Nxe5 {[%clk 0:02:04]}  Nxe4 {[%clk 0:01:36]} 23. N3c4 {[%clk 0:01:58]}  Nd3 {[%clk 0:01:17]} 24. Nxd3 {[%clk 0:01:44]}  Rxd3 {[%clk 0:01:18]} 25. Nxb6 {[%clk 0:01:33]}  Rd2 {[%clk 0:01:17]} 26. Nc4 {[%clk 0:01:32]}  Rxf2 {[%clk 0:01:11]} 27. Re1 {[%clk 0:01:30]}  Rf4 {[%clk 0:01:11]} 28. Nxa5 {[%clk 0:01:28]}  Nc5 {[%clk 0:01:06]} 29. b4 {[%clk 0:01:25]}  Nxa4 {[%clk 0:01:05]} 30. Re3 {[%clk 0:01:19]}  b6 {[%clk 0:00:59]} 31. g3 {[%clk 0:01:16]}  Rf6 {[%clk 0:00:52]} 32. Nc4 {[%clk 0:01:14]}  b5 {[%clk 0:00:44]} 33. Nd6 {[%clk 0:01:14]}  Nb2 {[%clk 0:00:37]} 34. Nxb5 {[%clk 0:01:12]}  Nc4 {[%clk 0:00:38]} 35. Rd3 {[%clk 0:01:10]}  Nb6 {[%clk 0:00:38]} 36. Nd6 {[%clk 0:01:01]}  h6 {[%clk 0:00:36]} 37. c4 {[%clk 0:01:01]}  e5 {[%clk 0:00:36]} 38. c5 {[%clk 0:01:01]}  Na4 {[%clk 0:00:29]} 39. c6 {[%clk 0:01:00]}  Nb6 {[%clk 0:00:28]} 40. c7 {[%clk 0:00:59]}  Rf8 {[%clk 0:00:27]} 41. Rc3 {[%clk 0:00:48]}  g6 {[%clk 0:00:17]} 42. c8=Q {[%clk 0:00:47]}  Nxc8 {[%clk 0:00:16]} 43. Rxc8 {[%clk 0:00:47]}  Rxc8 {[%clk 0:00:15]} 44. Nxc8 {[%clk 0:00:48]}  Kf7 {[%clk 0:00:16]} 45. b5 {[%clk 0:00:42]}  Ke6 {[%clk 0:00:16]} 46. b6 {[%clk 0:00:42]}  Kd7 {[%clk 0:00:17]} 47. Ne7 {[%clk 0:00:42]}  Ke6 {[%clk 0:00:16]} 48. b7 {[%clk 0:00:41]}  Kxe7 {[%clk 0:00:16]} 49. b8=Q {[%clk 0:00:42]}  Kf6 {[%clk 0:00:17]} 50. Qd6+ {[%clk 0:00:41]}  Kg5 {[%clk 0:00:18]} 51. Qxe5# {[%clk 0:00:41]} 1-0


[Site "https://www.chess.com"]

[Event "Titled Tuesday Blitz March 28 Early 2023"]
[White "Gonzalez, Francisco Silva"]
[Black "Garrido, Denis"]
[WhiteFideId "1512285"]
[BlackFideId "601217"]
[WhiteElo "2074"]
[BlackElo "2286"]
[Result "1-0"]
[Round "07"]
[TimeControl "180+2"]
[Date "2023.03.28"]
[WhiteClock "0:01:10"]
[BlackClock "0:00:24"]

1. d4 {[%clk 0:03:00]}  d5 {[%clk 0:02:59]} 2. c4 {[%clk 0:02:59]}  e6 {[%clk 0:02:59]} 3. Nc3 {[%clk 0:02:59]}  a6 {[%clk 0:02:58]} 4. cxd5 {[%clk 0:02:59]}  exd5 {[%clk 0:02:59]} 5. Qb3 {[%clk 0:02:59]}  Bd6 {[%clk 0:02:56]} 6. Nxd5 {[%clk 0:02:56]}  Be6 {[%clk 0:02:54]} 7. e4 {[%clk 0:02:44]}  Nc6 {[%clk 0:02:21]} 8. Nf3 {[%clk 0:02:37]}  Nce7 {[%clk 0:01:18]} 9. Bc4 {[%clk 0:02:18]}  b5 {[%clk 0:01:18]} 10. Nxc7+ {[%clk 0:02:09]}  Qxc7 {[%clk 0:01:16]} 11. Bxe6 {[%clk 0:02:09]}  fxe6 {[%clk 0:01:16]} 12. Qxe6 {[%clk 0:02:07]}  Qd7 {[%clk 0:01:00]} 13. Qxd7+ {[%clk 0:02:05]}  Kxd7 {[%clk 0:01:01]} 14. Bd2 {[%clk 0:01:59]}  Rc8 {[%clk 0:00:57]} 15. Rc1 {[%clk 0:01:45]}  Rxc1+ {[%clk 0:00:51]} 16. Bxc1 {[%clk 0:01:44]}  Nc6 {[%clk 0:00:49]} 17. Bd2 {[%clk 0:01:40]}  Nge7 {[%clk 0:00:47]} 18. Ke2 {[%clk 0:01:39]}  Re8 {[%clk 0:00:46]} 19. Kd3 {[%clk 0:01:37]}  Bb4 {[%clk 0:00:36]} 20. Bc3 {[%clk 0:01:35]}  Ng6 {[%clk 0:00:34]} 21. d5 {[%clk 0:01:32]}  Nce5+ {[%clk 0:00:29]} 22. Nxe5+ {[%clk 0:01:25]}  Nxe5+ {[%clk 0:00:29]} 23. Bxe5 {[%clk 0:01:23]}  Rxe5 {[%clk 0:00:29]} 24. f4 {[%clk 0:01:24]}  Re8 {[%clk 0:00:29]} 25. e5 {[%clk 0:01:24]}  g6 {[%clk 0:00:28]} 26. Rc1 {[%clk 0:01:21]}  Ba5 {[%clk 0:00:27]} 27. Ke4 {[%clk 0:01:19]}  Rc8 {[%clk 0:00:26]} 28. e6+ {[%clk 0:01:13]}  Kd8 {[%clk 0:00:24]} 29. e7+ {[%clk 0:01:10]} 1-0


[Site "https://www.chess.com"]

[Event "Titled Tuesday Blitz March 28 Early 2023"]
[White "Van Osch, Mees"]
[Black "Clawitter, Craig"]
[WhiteFideId "1035967"]
[BlackFideId "2023105"]
[WhiteElo "2324"]
[BlackElo "2249"]
[Result "1-0"]
[Round "07"]
[TimeControl "180+2"]
[Date "2023.03.28"]
[WhiteClock "0:01:40"]
[BlackClock "0:00:04"]

1. e4 {[%clk 0:02:52]}  e6 {[%clk 0:02:44]} 2. d4 {[%clk 0:02:51]}  d5 {[%clk 0:02:45]} 3. Nc3 {[%clk 0:02:47]}  Bb4 {[%clk 0:02:44]} 4. e5 {[%clk 0:02:46]}  c5 {[%clk 0:02:45]} 5. Bd2 {[%clk 0:02:46]}  Nh6 {[%clk 0:02:44]} 6. Nb5 {[%clk 0:02:42]}  Bxd2+ {[%clk 0:02:43]} 7. Qxd2 {[%clk 0:02:43]}  O-O {[%clk 0:02:43]} 8. f4 {[%clk 0:02:40]}  cxd4 {[%clk 0:02:38]} 9. Nf3 {[%clk 0:02:38]}  Nc6 {[%clk 0:02:38]} 10. Bd3 {[%clk 0:02:36]}  a6 {[%clk 0:02:29]} 11. Nbxd4 {[%clk 0:02:33]}  Nxd4 {[%clk 0:02:25]} 12. Nxd4 {[%clk 0:02:34]}  f6 {[%clk 0:02:16]} 13. O-O-O {[%clk 0:02:33]}  fxe5 {[%clk 0:02:07]} 14. fxe5 {[%clk 0:02:34]}  Bd7 {[%clk 0:01:51]} 15. h3 {[%clk 0:02:30]}  Rc8 {[%clk 0:01:46]} 16. Kb1 {[%clk 0:02:29]}  Qc7 {[%clk 0:01:33]} 17. g4 {[%clk 0:02:29]}  Qxe5 {[%clk 0:01:30]} 18. Rde1 {[%clk 0:02:26]}  Qf4 {[%clk 0:01:16]} 19. Qxf4 {[%clk 0:02:13]}  Rxf4 {[%clk 0:01:17]} 20. Nxe6 {[%clk 0:02:14]}  Bxe6 {[%clk 0:01:04]} 21. Rxe6 {[%clk 0:02:15]}  Nf7 {[%clk 0:01:03]} 22. Rhe1 {[%clk 0:02:11]}  Ng5 {[%clk 0:00:58]} 23. Re7 {[%clk 0:02:03]}  Rf7 {[%clk 0:00:45]} 24. h4 {[%clk 0:01:55]}  Ne4 {[%clk 0:00:18]} 25. Bxe4 {[%clk 0:01:45]}  dxe4 {[%clk 0:00:10]} 26. Rxf7 {[%clk 0:01:41]}  Kxf7 {[%clk 0:00:10]} 27. Rxe4 {[%clk 0:01:42]}  Rd8 {[%clk 0:00:09]} 28. Kc1 {[%clk 0:01:41]}  Rd5 {[%clk 0:00:08]} 29. c4 {[%clk 0:01:40]}  Rc5 {[%clk 0:00:07]} 30. b4 {[%clk 0:01:40]}  Rc6 {[%clk 0:00:04]} 31. Kc2 {[%clk 0:01:40]}  b5 {[%clk 0:00:04]} 32. c5 {[%clk 0:01:41]}  a5 {[%clk 0:00:05]} 33. Kc3 {[%clk 0:01:39]}  axb4+ {[%clk 0:00:04]} 34. Kxb4 {[%clk 0:01:40]} 1-0


[Site "https://www.chess.com"]

[Event "Titled Tuesday Blitz March 28 Early 2023"]
[White "Lauridsen, Jesper Morch"]
[Black "Carrasco Miranda, Andres"]
[WhiteFideId "1401890"]
[BlackFideId "3405990"]
[WhiteElo "2246"]
[BlackElo "2183"]
[Result "0-1"]
[Round "07"]
[TimeControl "180+2"]
[Date "2023.03.28"]
[WhiteClock "0:00:02"]
[BlackClock "0:00:09"]

1. e4 {[%clk 0:02:58]}  c5 {[%clk 0:02:59]} 2. d4 {[%clk 0:02:57]}  cxd4 {[%clk 0:02:59]} 3. c3 {[%clk 0:02:57]}  dxc3 {[%clk 0:02:59]} 4. Nxc3 {[%clk 0:02:57]}  Nf6 {[%clk 0:02:59]} 5. e5 {[%clk 0:02:56]}  Ng8 {[%clk 0:02:59]} 6. Nf3 {[%clk 0:02:54]}  Nc6 {[%clk 0:02:59]} 7. Bc4 {[%clk 0:02:51]}  e6 {[%clk 0:02:59]} 8. Bg5 {[%clk 0:02:32]}  Be7 {[%clk 0:02:57]} 9. h4 {[%clk 0:02:03]}  h6 {[%clk 0:02:55]} 10. Bf4 {[%clk 0:01:57]}  a6 {[%clk 0:02:43]} 11. Ne4 {[%clk 0:01:47]}  b5 {[%clk 0:02:40]} 12. Bb3 {[%clk 0:01:44]}  f5 {[%clk 0:02:29]} 13. exf6 {[%clk 0:01:20]}  Nxf6 {[%clk 0:02:27]} 14. Nd6+ {[%clk 0:01:13]}  Kf8 {[%clk 0:02:23]} 15. Qc2 {[%clk 0:01:04]}  Qa5+ {[%clk 0:02:11]} 16. Kf1 {[%clk 0:00:51]}  Qb4 {[%clk 0:02:06]} 17. Nxc8 {[%clk 0:00:27]}  Rxc8 {[%clk 0:02:03]} 18. Bd2 {[%clk 0:00:26]}  Qc5 {[%clk 0:01:56]} 19. Qg6 {[%clk 0:00:25]}  Qh5 {[%clk 0:01:31]} 20. Qd3 {[%clk 0:00:20]}  Qf5 {[%clk 0:01:15]} 21. Qxf5 {[%clk 0:00:18]}  exf5 {[%clk 0:01:16]} 22. Rc1 {[%clk 0:00:18]}  Ne4 {[%clk 0:01:09]} 23. Be3 {[%clk 0:00:16]}  Bf6 {[%clk 0:01:03]} 24. Bd4 {[%clk 0:00:16]}  Ke7 {[%clk 0:01:01]} 25. Bxf6+ {[%clk 0:00:15]}  Kxf6 {[%clk 0:01:01]} 26. h5 {[%clk 0:00:14]}  Ne5 {[%clk 0:00:59]} 27. Rxc8 {[%clk 0:00:12]}  Rxc8 {[%clk 0:01:00]} 28. Ke2 {[%clk 0:00:10]}  Nxf3 {[%clk 0:00:52]} 29. gxf3 {[%clk 0:00:10]}  Nc5 {[%clk 0:00:50]} 30. Rc1 {[%clk 0:00:10]}  Re8+ {[%clk 0:00:50]} 31. Kd2 {[%clk 0:00:08]}  d6 {[%clk 0:00:48]} 32. Bd5 {[%clk 0:00:07]}  Re5 {[%clk 0:00:47]} 33. Ba8 {[%clk 0:00:06]}  f4 {[%clk 0:00:44]} 34. b4 {[%clk 0:00:06]}  Ne6 {[%clk 0:00:40]} 35. Rc6 {[%clk 0:00:06]}  Ke7 {[%clk 0:00:30]} 36. Rxa6 {[%clk 0:00:06]}  Rxh5 {[%clk 0:00:31]} 37. Ra7+ {[%clk 0:00:06]}  Kf6 {[%clk 0:00:30]} 38. Be4 {[%clk 0:00:05]}  Rh2 {[%clk 0:00:29]} 39. Ke1 {[%clk 0:00:03]}  g5 {[%clk 0:00:28]} 40. Rb7 {[%clk 0:00:03]}  Nd4 {[%clk 0:00:25]} 41. Rb6 {[%clk 0:00:03]}  Ke5 {[%clk 0:00:24]} 42. Bb7 {[%clk 0:00:03]}  g4 {[%clk 0:00:19]} 43. fxg4 {[%clk 0:00:03]}  f3 {[%clk 0:00:20]} 44. a3 {[%clk 0:00:03]}  Rh1+ {[%clk 0:00:16]} 45. Kd2 {[%clk 0:00:03]}  Ra1 {[%clk 0:00:17]} 46. Ra6 {[%clk 0:00:02]}  Ra2+ {[%clk 0:00:17]} 47. Kd3 {[%clk 0:00:01]}  Rxf2 {[%clk 0:00:16]} 48. Ra5 {[%clk 0:00:01]}  Ra2 {[%clk 0:00:14]} 49. Bxf3 {[%clk 0:00:01]}  Nxf3 {[%clk 0:00:13]} 50. Rxb5+ {[%clk 0:00:02]}  Kf4 {[%clk 0:00:14]} 51. Ra5 {[%clk 0:00:02]}  Rd2+ {[%clk 0:00:12]} 52. Kc3 {[%clk 0:00:02]}  d5 {[%clk 0:00:13]} 53. b5 {[%clk 0:00:02]}  d4+ {[%clk 0:00:13]} 54. Kb3 {[%clk 0:00:03]}  Rd1 {[%clk 0:00:11]} 55. b6 {[%clk 0:00:02]}  Rb1+ {[%clk 0:00:11]} 56. Ka4 {[%clk 0:00:02]}  Rxb6 {[%clk 0:00:11]} 57. g5 {[%clk 0:00:03]}  hxg5 {[%clk 0:00:09]} 58. Rb5 {[%clk 0:00:02]}  Rxb5 {[%clk 0:00:09]} 0-1


[Site "https://www.chess.com"]

[Event "Titled Tuesday Blitz March 28 Early 2023"]
[White "Kiseleva, Arina"]
[Black "Akhmetov, Ayan"]
[WhiteFideId "4164989"]
[BlackFideId "13703706"]
[WhiteElo "1756"]
[BlackElo "2398"]
[Result "0-1"]
[Round "07"]
[TimeControl "180+2"]
[Date "2023.03.28"]
[WhiteClock "0:00:12"]
[BlackClock "0:00:35"]

1. d4 {[%clk 0:03:00]}  e6 {[%clk 0:02:59]} 2. e3 {[%clk 0:03:00]}  b6 {[%clk 0:02:59]} 3. Nf3 {[%clk 0:02:59]}  Bb7 {[%clk 0:02:59]} 4. Bd3 {[%clk 0:02:58]}  Nf6 {[%clk 0:02:59]} 5. Nbd2 {[%clk 0:02:56]}  g6 {[%clk 0:02:57]} 6. e4 {[%clk 0:02:54]}  d6 {[%clk 0:02:51]} 7. O-O {[%clk 0:02:51]}  Bg7 {[%clk 0:02:51]} 8. c3 {[%clk 0:02:26]}  O-O {[%clk 0:02:51]} 9. Qe2 {[%clk 0:02:25]}  Nbd7 {[%clk 0:02:38]} 10. a4 {[%clk 0:02:24]}  a6 {[%clk 0:02:23]} 11. h3 {[%clk 0:02:06]}  e5 {[%clk 0:02:19]} 12. Nc4 {[%clk 0:01:53]}  exd4 {[%clk 0:02:16]} 13. Nxd4 {[%clk 0:01:46]}  Re8 {[%clk 0:02:11]} 14. f3 {[%clk 0:01:35]}  d5 {[%clk 0:02:10]} 15. Nd2 {[%clk 0:01:29]}  Nc5 {[%clk 0:02:06]} 16. Bc2 {[%clk 0:01:15]}  dxe4 {[%clk 0:02:05]} 17. fxe4 {[%clk 0:01:12]}  Nfxe4 {[%clk 0:02:00]} 18. Nxe4 {[%clk 0:01:12]}  Bxe4 {[%clk 0:01:57]} 19. Bxe4 {[%clk 0:01:08]}  Bxd4+ {[%clk 0:01:51]} 20. cxd4 {[%clk 0:01:03]}  Qxd4+ {[%clk 0:01:52]} 21. Kh1 {[%clk 0:00:58]}  Nxe4 {[%clk 0:01:43]} 22. Qf3 {[%clk 0:00:52]}  f5 {[%clk 0:01:38]} 23. Bf4 {[%clk 0:00:27]}  Re7 {[%clk 0:01:24]} 24. Qb3+ {[%clk 0:00:26]}  Kg7 {[%clk 0:01:20]} 25. Rac1 {[%clk 0:00:20]}  Nc5 {[%clk 0:00:44]} 26. Qc2 {[%clk 0:00:18]}  Rae8 {[%clk 0:00:38]} 27. Rfd1 {[%clk 0:00:14]}  Qxf4 {[%clk 0:00:37]} 28. b4 {[%clk 0:00:13]}  Ne4 {[%clk 0:00:35]} 29. Qb2+ {[%clk 0:00:13]}  Qe5 {[%clk 0:00:35]} 30. Qb3 {[%clk 0:00:13]}  Ng3+ {[%clk 0:00:35]} 31. Kg1 {[%clk 0:00:12]}  Ne2+ {[%clk 0:00:35]} 0-1


[Site "https://www.chess.com"]

[Event "Titled Tuesday Blitz March 28 Early 2023"]
[White "Ciuffoletti, Paolo"]
[Black "Avazkhonov, Alikhon"]
[WhiteFideId "807630"]
[BlackFideId "14208504"]
[WhiteElo "2143"]
[BlackElo "1739"]
[Result "0-1"]
[Round "07"]
[TimeControl "180+2"]
[Date "2023.03.28"]
[WhiteClock "0:00:07"]
[BlackClock "0:01:34"]

1. e4 {[%clk 0:03:00]}  Nf6 {[%clk 0:03:00]} 2. e5 {[%clk 0:03:00]}  Nd5 {[%clk 0:03:00]} 3. c4 {[%clk 0:03:00]}  Nb6 {[%clk 0:02:58]} 4. d4 {[%clk 0:03:00]}  d6 {[%clk 0:02:58]} 5. f4 {[%clk 0:03:00]}  dxe5 {[%clk 0:02:53]} 6. fxe5 {[%clk 0:03:00]}  c5 {[%clk 0:02:53]} 7. d5 {[%clk 0:02:59]}  g6 {[%clk 0:02:47]} 8. Nf3 {[%clk 0:02:33]}  Bg7 {[%clk 0:02:45]} 9. Bf4 {[%clk 0:02:29]}  O-O {[%clk 0:02:46]} 10. Bd3 {[%clk 0:02:22]}  Bg4 {[%clk 0:02:41]} 11. O-O {[%clk 0:02:19]}  e6 {[%clk 0:02:40]} 12. dxe6 {[%clk 0:01:47]}  fxe6 {[%clk 0:02:41]} 13. Bg3 {[%clk 0:01:46]}  Nc6 {[%clk 0:02:34]} 14. Be4 {[%clk 0:01:08]}  Qxd1 {[%clk 0:02:29]} 15. Rxd1 {[%clk 0:01:07]}  Nxc4 {[%clk 0:02:27]} 16. Rc1 {[%clk 0:00:49]}  Bxf3 {[%clk 0:02:16]} 17. Bxf3 {[%clk 0:00:45]}  N4xe5 {[%clk 0:02:17]} 18. Nc3 {[%clk 0:00:32]}  Nxf3+ {[%clk 0:02:16]} 19. gxf3 {[%clk 0:00:32]}  Rxf3 {[%clk 0:02:10]} 20. Kg2 {[%clk 0:00:30]}  Raf8 {[%clk 0:02:11]} 21. Rab1 {[%clk 0:00:27]}  Bxc3 {[%clk 0:02:03]} 22. bxc3 {[%clk 0:00:26]}  b6 {[%clk 0:02:04]} 23. Rb2 {[%clk 0:00:24]}  e5 {[%clk 0:02:04]} 24. Re2 {[%clk 0:00:24]}  R3f5 {[%clk 0:02:04]} 25. Rd1 {[%clk 0:00:23]}  R8f6 {[%clk 0:01:59]} 26. Rd7 {[%clk 0:00:22]}  Re6 {[%clk 0:01:51]} 27. Re4 {[%clk 0:00:20]}  Rf7 {[%clk 0:01:51]} 28. Rd5 {[%clk 0:00:19]}  Kg7 {[%clk 0:01:43]} 29. h4 {[%clk 0:00:18]}  h5 {[%clk 0:01:40]} 30. Kg1 {[%clk 0:00:16]}  Rfe7 {[%clk 0:01:38]} 31. Kg2 {[%clk 0:00:16]}  Kf6 {[%clk 0:01:39]} 32. Re2 {[%clk 0:00:15]}  e4 {[%clk 0:01:36]} 33. Rg5 {[%clk 0:00:13]}  Na5 {[%clk 0:01:35]} 34. Rf2+ {[%clk 0:00:12]}  Kg7 {[%clk 0:01:35]} 35. Re2 {[%clk 0:00:12]}  Nc4 {[%clk 0:01:36]} 36. Bf4 {[%clk 0:00:11]}  e3 {[%clk 0:01:35]} 37. Kf3 {[%clk 0:00:10]}  Nd2+ {[%clk 0:01:33]} 38. Kg2 {[%clk 0:00:09]}  Ne4 {[%clk 0:01:34]} 39. Rd5 {[%clk 0:00:07]}  Nxc3 {[%clk 0:01:34]} 0-1


[Site "https://www.chess.com"]

[Event "Titled Tuesday Blitz March 28 Early 2023"]
[White "Ardila, Oscar Humberto"]
[Black "Napoli, Nicolo"]
[WhiteFideId "4404742"]
[BlackFideId "813702"]
[WhiteElo "1911"]
[BlackElo "2308"]
[Result "0-1"]
[Round "07"]
[TimeControl "180+2"]
[Date "2023.03.28"]
[WhiteClock "0:00:13"]
[BlackClock "0:00:20"]

1. d4 {[%clk 0:02:58]}  d5 {[%clk 0:02:13]} 2. c4 {[%clk 0:02:51]}  c6 {[%clk 0:02:13]} 3. cxd5 {[%clk 0:02:49]}  cxd5 {[%clk 0:02:14]} 4. Nc3 {[%clk 0:02:49]}  Nf6 {[%clk 0:02:10]} 5. Nf3 {[%clk 0:02:50]}  Bf5 {[%clk 0:02:08]} 6. Bf4 {[%clk 0:02:49]}  e6 {[%clk 0:02:06]} 7. e3 {[%clk 0:02:50]}  Nc6 {[%clk 0:02:05]} 8. Be2 {[%clk 0:02:49]}  Bd6 {[%clk 0:02:04]} 9. Bxd6 {[%clk 0:02:49]}  Qxd6 {[%clk 0:02:05]} 10. O-O {[%clk 0:02:50]}  O-O {[%clk 0:02:05]} 11. Rc1 {[%clk 0:02:51]}  Rac8 {[%clk 0:02:03]} 12. Na4 {[%clk 0:02:51]}  Qb4 {[%clk 0:02:01]} 13. a3 {[%clk 0:02:51]}  Qe7 {[%clk 0:01:57]} 14. Nc5 {[%clk 0:02:50]}  Ne4 {[%clk 0:01:53]} 15. b4 {[%clk 0:02:49]}  Nxc5 {[%clk 0:01:48]} 16. bxc5 {[%clk 0:02:49]}  b6 {[%clk 0:01:49]} 17. Bb5 {[%clk 0:02:45]}  Na5 {[%clk 0:01:17]} 18. cxb6 {[%clk 0:02:15]}  axb6 {[%clk 0:01:14]} 19. a4 {[%clk 0:02:14]}  Qb4 {[%clk 0:01:10]} 20. Ne5 {[%clk 0:02:11]}  Nb3 {[%clk 0:00:55]} 21. Rxc8 {[%clk 0:02:08]}  Rxc8 {[%clk 0:00:56]} 22. h3 {[%clk 0:02:01]}  Rc1 {[%clk 0:00:25]} 23. Qh5 {[%clk 0:01:39]}  Rxf1+ {[%clk 0:00:19]} 24. Kxf1 {[%clk 0:01:39]}  Nd2+ {[%clk 0:00:16]} 25. Kg1 {[%clk 0:01:39]}  Qb1+ {[%clk 0:00:14]} 26. Kh2 {[%clk 0:01:40]}  Nf1+ {[%clk 0:00:14]} 27. Kg1 {[%clk 0:01:40]}  Ng3+ {[%clk 0:00:14]} 28. Kh2 {[%clk 0:01:40]}  Nxh5 {[%clk 0:00:14]} 29. g4 {[%clk 0:01:40]}  Nf6 {[%clk 0:00:14]} 30. gxf5 {[%clk 0:01:39]}  exf5 {[%clk 0:00:15]} 31. Kg3 {[%clk 0:01:40]}  Ne4+ {[%clk 0:00:14]} 32. Kf4 {[%clk 0:01:40]}  Qe1 {[%clk 0:00:13]} 33. Nd3 {[%clk 0:01:40]}  Qh1 {[%clk 0:00:12]} 34. Kxf5 {[%clk 0:01:40]}  Qxh3+ {[%clk 0:00:12]} 35. Ke5 {[%clk 0:01:40]}  Qf3 {[%clk 0:00:11]} 36. Nf4 {[%clk 0:01:37]}  Nxf2 {[%clk 0:00:10]} 37. Nxd5 {[%clk 0:01:35]}  Qe4+ {[%clk 0:00:10]} 38. Kd6 {[%clk 0:01:35]}  Ng4 {[%clk 0:00:09]} 39. Ne7+ {[%clk 0:01:34]}  Kf8 {[%clk 0:00:09]} 40. Nc6 {[%clk 0:01:30]}  Qxe3 {[%clk 0:00:08]} 41. d5 {[%clk 0:01:30]}  Nf6 {[%clk 0:00:08]} 42. Kc7 {[%clk 0:01:22]}  Nxd5+ {[%clk 0:00:07]} 43. Kb7 {[%clk 0:01:22]}  Ne7 {[%clk 0:00:07]} 44. Nd8 {[%clk 0:01:22]}  Qe4+ {[%clk 0:00:06]} 45. Kxb6 {[%clk 0:01:22]}  Nd5+ {[%clk 0:00:06]} 46. Kc5 {[%clk 0:01:21]}  Qe7+ {[%clk 0:00:06]} 47. Kxd5 {[%clk 0:01:20]}  Qxd8+ {[%clk 0:00:07]} 48. Kc6 {[%clk 0:01:19]}  Qb8 {[%clk 0:00:08]} 49. Kc5 {[%clk 0:01:19]}  Qa7+ {[%clk 0:00:08]} 50. Kb4 {[%clk 0:01:20]}  h5 {[%clk 0:00:09]} 51. a5 {[%clk 0:01:20]}  h4 {[%clk 0:00:10]} 52. a6 {[%clk 0:01:21]}  g5 {[%clk 0:00:11]} 53. Ka5 {[%clk 0:01:21]}  f5 {[%clk 0:00:12]} 54. Kb4 {[%clk 0:00:06]}  Ke7 {[%clk 0:00:13]} 55. Ka5 {[%clk 0:00:05]}  Kf6 {[%clk 0:00:14]} 56. Kb4 {[%clk 0:00:05]}  Ke5 {[%clk 0:00:14]} 57. Ka5 {[%clk 0:00:05]}  Kf4 {[%clk 0:00:15]} 58. Kb4 {[%clk 0:00:06]}  h3 {[%clk 0:00:16]} 59. Ka5 {[%clk 0:00:07]}  h2 {[%clk 0:00:17]} 60. Kb4 {[%clk 0:00:07]}  Ke5 {[%clk 0:00:17]} 61. Ka5 {[%clk 0:00:08]}  Kd6 {[%clk 0:00:18]} 62. Kb4 {[%clk 0:00:08]}  Kc7 {[%clk 0:00:19]} 63. Ka5 {[%clk 0:00:09]}  Qb6+ {[%clk 0:00:18]} 64. Kb4 {[%clk 0:00:09]}  Kb8 {[%clk 0:00:19]} 65. Ka4 {[%clk 0:00:10]}  Ka7 {[%clk 0:00:20]} 66. Kb4 {[%clk 0:00:11]}  Qxb5+ {[%clk 0:00:19]} 67. Kxb5 {[%clk 0:00:11]}  h1=Q {[%clk 0:00:20]} 68. Kc5 {[%clk 0:00:12]}  Qc1+ {[%clk 0:00:20]} 69. Kb5 {[%clk 0:00:13]}  Qb2+ {[%clk 0:00:20]} 0-1


[Site "https://www.chess.com"]

[Event "Titled Tuesday Blitz March 28 Early 2023"]
[White "Orujov2008"]
[Black "Kuchava, Ana"]
[BlackFideId "13605348"]
[WhiteElo "2289"]
[BlackElo "2001"]
[Result "0-1"]
[Round "07"]
[TimeControl "180+2"]
[Date "2023.03.28"]
[WhiteClock "0:00:01"]
[BlackClock "0:00:34"]

1. e4 {[%clk 0:03:00]}  c5 {[%clk 0:02:59]} 2. Nf3 {[%clk 0:03:01]}  d6 {[%clk 0:02:58]} 3. d4 {[%clk 0:03:01]}  cxd4 {[%clk 0:02:59]} 4. Nxd4 {[%clk 0:03:02]}  Nf6 {[%clk 0:02:55]} 5. Nc3 {[%clk 0:03:02]}  Nc6 {[%clk 0:02:55]} 6. Bg5 {[%clk 0:03:02]}  e6 {[%clk 0:02:55]} 7. Qd2 {[%clk 0:03:02]}  Qb6 {[%clk 0:02:55]} 8. O-O-O {[%clk 0:02:58]}  Qxd4 {[%clk 0:02:53]} 9. Qxd4 {[%clk 0:02:59]}  Nxd4 {[%clk 0:02:54]} 10. Rxd4 {[%clk 0:03:00]}  a6 {[%clk 0:02:54]} 11. f4 {[%clk 0:02:57]}  Be7 {[%clk 0:02:53]} 12. Be2 {[%clk 0:02:51]}  h6 {[%clk 0:02:48]} 13. Bxf6 {[%clk 0:02:42]}  gxf6 {[%clk 0:02:45]} 14. Bf3 {[%clk 0:02:43]}  Bd7 {[%clk 0:02:44]} 15. Rhd1 {[%clk 0:02:41]}  Bc6 {[%clk 0:02:42]} 16. Re1 {[%clk 0:02:36]}  h5 {[%clk 0:02:36]} 17. Rd3 {[%clk 0:02:33]}  O-O-O {[%clk 0:02:18]} 18. e5 {[%clk 0:02:29]}  fxe5 {[%clk 0:02:08]} 19. fxe5 {[%clk 0:02:29]}  dxe5 {[%clk 0:01:59]} 20. Rxd8+ {[%clk 0:01:53]}  Kxd8 {[%clk 0:01:49]} 21. Bxc6 {[%clk 0:01:54]}  bxc6 {[%clk 0:01:48]} 22. Rxe5 {[%clk 0:01:55]}  Bd6 {[%clk 0:01:42]} 23. Ra5 {[%clk 0:01:49]}  Bxh2 {[%clk 0:01:26]} 24. Rxa6 {[%clk 0:01:49]}  Ke7 {[%clk 0:01:26]} 25. a4 {[%clk 0:01:25]}  Rg8 {[%clk 0:01:21]} 26. a5 {[%clk 0:01:17]}  Rxg2 {[%clk 0:01:21]} 27. Rxc6 {[%clk 0:00:52]}  Rg1+ {[%clk 0:00:59]} 28. Kd2 {[%clk 0:00:50]}  Ra1 {[%clk 0:00:58]} 29. b4 {[%clk 0:00:46]}  h4 {[%clk 0:00:58]} 30. Rc4 {[%clk 0:00:34]}  Bg3 {[%clk 0:00:55]} 31. Ne2 {[%clk 0:00:34]}  Be1+ {[%clk 0:00:52]} 32. Ke3 {[%clk 0:00:24]}  h3 {[%clk 0:00:53]} 33. Rf4 {[%clk 0:00:03]}  h2 {[%clk 0:00:48]} 34. Rf1 {[%clk 0:00:04]}  Bf2+ {[%clk 0:00:38]} 35. Rxf2 {[%clk 0:00:01]}  h1=Q {[%clk 0:00:37]} 36. Ng3 {[%clk 0:00:01]}  Qh6+ {[%clk 0:00:34]} 0-1


[Site "https://www.chess.com"]